{"text_format":"3","workbook":"xlsx","n_sheets":2,"sheets":["INICIO","EJERCICIO"],"not_rendered":{"macros":1,"defined_names":7},"read":"whole","date_system":"1900"}

{"sheet":"INICIO","index":0,"n_rows":26,"n_cols":6,"rows_kept":26}
[null,"Programación en Excel VBA • Nivel I"]
[null,"MOS Expert CPC Martín Cruz • +51 998401784 | Excel No Convencional"]
[]
[null,"Tipo de datos y declaración de variables"]
[]
[]
[null,null,"Tipo de datos","Simbolo","Tamaño de almacenamiento","Intervalo"]
[null,null,"Byte",{"$f":"\"\"","v":""},"1 byte","0 a 255"]
[null,null,"Boolean",{"$f":"\"\"","v":""},"2 bytes","True o False"]
[null,null,"Integer","%","2 bytes","-32,768 a 32,767"]
[null,null,"Long","&","4 bytes","-2,147,483,648 a 2,147,483,647"]
[null,null,"(entero largo)",{"$f":"\"\"","v":""},{"$f":"\"\"","v":""},{"$f":"\"\"","v":""}]
[null,null,"Single","!","4 bytes","-3.402823E38 a –1.401298E-45 para valores negativos"]
[null,null,"(coma flotante/ precisión simple)",{"$f":"\"\"","v":""},{"$f":"\"\"","v":""},"1.401298E-45 a 3.402823E38 para valores positivos"]
[null,null,"Double","#","8 bytes","-1.79769313486231E308 a -4.94065645841247E-324 para valores negativos"]
[null,null,"(coma flotante/ precisión doble)",{"$f":"\"\"","v":""},{"$f":"\"\"","v":""},"4.94065645841247E-324 a 1.79769313486232E308 para valores positivos"]
[null,null,"Currency","@","8 bytes","-922,337,203,685,477.5808 a 922,337,203,685,477.5807"]
[null,null,"(entero a escala)",{"$f":"\"\"","v":""},{"$f":"\"\"","v":""},{"$f":"\"\"","v":""}]
[null,null,"Date",{"$f":"\"\"","v":""},"8 bytes","1 de enero de 100 a 31 de diciembre de 9999"]
[null,null,"Object",{"$f":"\"\"","v":""},"4 bytes","Cualquier referencia a tipo Object"]
[null,null,"String","$","10 bytes + longitud de la cadena","Desde 0 a 2,000 millones"]
[null,null,"(longitud variable)",{"$f":"\"\"","v":""},{"$f":"\"\"","v":""},{"$f":"\"\"","v":""}]
[null,null,"Variant",{"$f":"\"\"","v":""},"16 bytes","Cualquier valor numérico hasta el intervalo de un tipo Double"]
[null,null,"(con números)",{"$f":"\"\"","v":""},{"$f":"\"\"","v":""},{"$f":"\"\"","v":""}]
[null,null,"Variant",{"$f":"\"\"","v":""},"22 bytes + longitud de la cadena","El mismo intervalo que para un tipo String de longitud variable"]
[null,null,"(con caracteres)",{"$f":"\"\"","v":""},{"$f":"\"\"","v":""},{"$f":"\"\"","v":""}]

{"sheet":"EJERCICIO","index":1,"n_rows":11,"n_cols":11,"rows_kept":11}
[null,"Tipo de datos y declaración de variables • Programación en Excel VBA"]
[null,"MOS Expert CPC Martín Cruz • +51 998401784 | Excel No Convencional"]
[]
[]
[]
[null,null,"Deuda",null,null,"Nro","Saldo inicial","Intereses","Amortización","Cuota","Saldo Final"]
[null,null,"TEA"]
[null,null,"Periodos"]
[null,null,"Cuota"]
[null,null,"Procesos"]
[null,null,"Fecha y hora"]